Cogmind - Beta 10.2 @@@ ROGUE MODE // 2020.11.17 @ 06:55:29 // Halloween2020/ForbiddenLore Player: Coronach Result: Destroyed by G-47 Trooper with Particle Gun Performance ------------- Evolutions (0) 0 Regions Visited (1) 200 Robots Destroyed (12) 60 Value Destroyed (379) 379 Prototype IDs (0) 0 Alien Tech Used (0) 0 Bonus (0) 0 TOTAL SCORE: 639 Bonus ------- None Cogmind --------- Core Integrity 0/250 Matter 292/300 Energy 125/125 System Corruption 0% Temperature Cool (15) Movement Treading (180) Ox1 Location -10/Materials Parts ------- > --- POWER (1) -------- Light Ion Engine > --- PROPULSION (2) --- Light Treads Compact Wheel > --- UTILITY (2) ------ Large Storage Unit Signal Interpreter > --- WEAPON (2) ------- Shotgun Shotgun > --- INVENTORY (10) --- Large Storage Unit Large Battery (300) Small Matter Pod (50) Signal Interpreter Particle Cannon Particle Cannon Grenade Launcher Mining Laser Peak State ------------ > --- POWER ------------ Light Ion Engine > --- PROPULSION ------- Light Treads Compact Wheel > --- UTILITY ---------- Large Storage Unit Signal Interpreter > --- WEAPON ----------- Shotgun Shotgun > --- INVENTORY -------- Large Storage Unit Large Battery Small Matter Pod Signal Interpreter Particle Cannon Particle Cannon Grenade Launcher Mining Laser [Rating: 10] Favorites ----------- Power Light Ion Engine Engine Light Ion Engine Propulsion Compact Wheel Treads Light Treads Leg Aluminum Leg Wheel Compact Wheel Utility Signal Interpreter Storage Large Storage Unit Processor Signal Interpreter Weapon EM Pulse Gun Energy Gun EM Pulse Gun Energy Cannon Particle Cannon Ballistic Gun Shotgun Special Weapon Mining Laser Build | -11 -10 ------- Run | Scr Mat Slots Evolved . | . . Power . | . . Propulsion . | . . Utility . | . . Weapon . | . . Parts Attached 16 | 3 13 Power 3 | . 3 Engine 3 | . 3 Core . | . . Reactor . | . . Propulsion 5 | 2 3 Treads 2 | 1 1 Leg . | . . Wheel 3 | 1 2 Hover . | . . Flight . | . . Utility 3 | . 3 Device . | . . Storage 2 | . 2 Processor 1 | . 1 Hackware . | . . Protection . | . . Artifact . | . . Weapon 5 | 1 4 Energy Gun 1 | 1 . Energy Cannon 1 | . 1 Ballistic Gun 2 | . 2 Ballistic Cannon . | . . Launcher . | . . Special Weapon 1 | . 1 Impact Weapon . | . . Slashing Weapon . | . . Piercing Weapon . | . . Special Melee Weapon . | . . Unidentified Prototypes . | . . Parts Lost 3 | . 3 Power 1 | . 1 Propulsion . | . . Utility . | . . Weapon 2 | . 2 Highest Loss Streak 2 | . 2 Average Slot Usage (%) 96 | . 96 Engine 14 | . 14 Treads 14 | . 14 Wheel 14 | . 14 Storage 14 | . 14 Processor 12 | . 12 Energy Gun 19 | . 19 Energy Cannon 2 | . 2 Ballistic Gun 3 | . 3 Special Weapon 1 | . 1 Naked Turns . | . . Heaviest Build 27 | 11 27 Greatest Support 20 | 20 20 Greatest Overweight (x) 1 | . 1 Average Overweight (x) . | . . Largest Inventory Capacity 10 | 6 10 Average Capacity 8 | 6 8 Most Carried 10 | 6 10 Average Carried 6 | 4 6 Final Capacity 10 | 6 10 Final Carried 8 | 4 8 Class Distribution -------------------- 100% | Mutant Dominant Class ---------------- Mutant | -10/Materials Resources | -11 -10 ----------- Run | Scr Mat Matter Collected 437 | 230 207 Remotely . | . . Salvage Created 438 | 62 376 Parts 17 | . 17 Haulers Intercepted . | . . Recyclers Shooed 1 | 1 . Parts Field Recycled . | . . Retrieved Matter . | . . Parts Self-Destructed . | . . Prevented . | . . Kills | -11 -10 ------- Run | Scr Mat Combat Hostiles Destroyed 9 | . 9 Guns 4 | . 4 Cannons 3 | . 3 AOE 2 | . 2 Classes Destroyed 4 | 1 3 Builder 1 | . 1 Recycler 1 | 1 . Watcher 1 | . 1 Grunt 9 | . 9 Best Kill Streak 4 | 1 4 Combat Bots Only 3 | . 3 Max Kills in Single Turn 1 | 1 1 Gunslinging . | . . Exploded 1 | . 1 Melee . | . . Uniques/NPCs Destroyed . | . . Combat | -11 -10 -------- Run | Scr Mat Damage Taken 804 | . 804 Core 252 | . 252 Absorbed by Shields . | . . Core Remaining (%) 100 | 100 . Volleys Fired 40 | 2 38 Largest 2 | 2 2 Hottest 108 | 80 108 Shots Fired 64 | 4 60 Gun 51 | 4 47 Cannon 10 | . 10 Launcher . | . . Special 3 | . 3 Kinetic 2 | . 2 Thermal 13 | . 13 Explosive . | . . Electromagnetic 49 | 4 45 Robot Hit Streak 10 | 1 10 Robot Miss Streak 3 | 1 3 Penetration Max . | . . Secondary Targets . | . . Shots Hit Robots 42 | 2 40 Core Hits 20 | 2 18 Critical Hits . | . . Critical Kills . | . . Critical Parts Destroyed . | . . Melee Attacks . | . . Impact . | . . Slashing . | . . Piercing . | . . Sneak Attacks . | . . Combat Hostiles . | . . Follow-up Attacks . | . . Damage Inflicted 1042 | 45 997 Guns 470 | 24 446 Cannons 124 | . 124 Explosions 400 | 21 379 Melee . | . . Ramming . | . . Kinetic 9 | . 9 Thermal 572 | 21 551 Explosive . | . . Electromagnetic 461 | 24 437 Impact . | . . Slashing . | . . Piercing . | . . Highest Corruption . | . . Average Corruption . | . . Corruption Purged . | . . Overload Shots . | . . Overflow Damage 41 | . 41 Projectiles . | . . Explosions 41 | . 41 Melee . | . . Knockbacks . | . . Impact . | . . Kinetic . | . . Secondary . | . . Self-Inflicted Damage 242 | . 242 Shots 5 | . 5 Rammed . | . . Targets Rammed . | . . Kicked . | . . Crushed . | . . Highest Temperature 474 | 36 474 Average Temperature 138 | 20 144 Received Heat Transfer 321 | . 321 Effects 3 | . 3 Shutdowns 1 | . 1 Energy Bleed 1 | . 1 Matter Decay 1 | . 1 Siege Activations . | . . Robots Corrupted . | . . Combat Hostiles . | . . Parts Fried 2 | 1 1 Impact Corruptions . | . . Robots Melted . | . . Combat Hostiles . | . . Parts Melted 1 | . 1 Heat Transferred 822 | 50 772 Parts Sabotaged . | . . Parts Stolen . | . . Parts Stripped . | . . Power Chain Reactions 5 | 1 4 Missiles Intercepted . | . . Alert | -11 -10 ------- Run | Scr Mat Peak Influence 215 | 5 215 Initial 3 | . 3 Average 104 | 3 107 Maximum Alert Level 1 | . 1 Low Security (%) 80 | 100 79 Level 1 19 | . 20 Level 2 . | . . Level 3 . | . . Level 4 . | . . Level 5 . | . . High Security . | . . Max Security . | . . Squads Dispatched 1 | . 1 Investigation . | . . Extermination . | . . Reinforcement 1 | . 1 Assault . | . . Garrison . | . . Intercept . | . . Construction Impeded . | . . Haulers Reinforced . | . . Stealth | -11 -10 --------- Run | Scr Mat Distress Signals 1 | . 1 Communications Jammed . | . . Distress Signals . | . . Times Spotted 19 | . 19 Peak Tracking Total 4 | . 4 Tactical Retreats 2 | . 2 Traps | -11 -10 ------- Run | Scr Mat Traps Triggered . | . . Indirectly . | . . Trap Hack Attempts . | . . Triggered . | . . Disarmed . | . . Reprogrammed . | . . Reused . | . . Traps Extracted . | . . Installed . | . . Triggered . | . . Machines | -11 -10 ---------- Run | Scr Mat Machines Disabled 2 | . 2 Max in Single Turn 2 | . 2 Machines Sabotaged . | . . Garrisons Compromised . | . . Overloaded Fab Kills . | . . Fab Network Shutdowns . | . . Hacking | -11 -10 --------- Run | Scr Mat Machines Accessed 2 | . 2 Terminals . | . . Fabricators . | . . Repair Stations 1 | . 1 Recycling Units 1 | . 1 Scanalyzers . | . . Garrison Access . | . . Total Hacks 7 | . 7 Successful 6 | . 6 Failed 1 | . 1 Catastrophic . | . . Database Lockouts . | . . Manual 6 | . 6 Terminals . | . . Fabricators . | . . Repair Stations 1 | . 1 Recycling Units 6 | . 6 Scanalyzers . | . . Garrison Access . | . . Terminal Hacks . | . . Fabricator Hacks . | . . Repair Station Hacks . | . . Recycling Unit Hacks 1 | . 1 Report Inventory 1 | . 1 Scanalyzer . | . . Garrison Access Hacks . | . . Unauthorized Hacks 5 | . 5 Terminals . | . . Fabricators . | . . Repair Stations 1 | . 1 Mechanics 1 | . 1 Recycling Units 4 | . 4 Monitor 1 | . 1 Reject 1 | . 1 Recyclers 1 | . 1 Mask 1 | . 1 Scanalyzers . | . . Garrison Access . | . . Data Cores Recovered . | . . Used . | . . Hacking Detections 2 | . 2 Full Trace Events . | . . Feedback Events . | . . Feedback Blocked . | . . Robot Schematics Acquired . | . . Robots Built . | . . Matter . | . . Time . | . . Total Robot Build Rating . | . . Part Schematics Acquired . | . . Parts Built . | . . Matter . | . . Time . | . . Total Part Build Rating . | . . Parts Repaired . | . . Time . | . . Parts Recycled . | . . Recycled Matter . | . . Retrieved Matter . | . . Retrieved Components . | . . Parts Scanalyzed . | . . Part Schematics Acquired . | . . Parts Damaged . | . . Bothacking | -11 -10 ------------ Run | Scr Mat Used RIF Installer . | . . Robots Hacked . | . . Non-combat . | . . Combat . | . . Robot Hacks Applied . | . . Relay Couplers Released . | . . Robots Rewired . | . . Allies Hacked . | . . Hacks Repelled . | . . Allies | -11 -10 -------- Run | Scr Mat Total Allies . | . . Largest Group . | . . Highest-Rated Group . | . . Highest-Rated Ally . | . . Total Orders . | . . Ally Attacks . | . . Total Damage . | . . Kills . | . . Allies Corrupted . | . . Allies Melted . | . . Intel | -11 -10 ------- Run | Scr Mat Robot Analysis Total . | . . Derelict Logs Recovered . | . . Drone Launches . | . . Drone Recoveries . | . . Exploration | -11 -10 ------------- Run | Scr Mat Turns Passed 712 | 23 689 Spaces Moved 461 | 8 453 Core . | . . Treads 32 | 8 24 Legs . | . . Wheels 429 | . 429 Hover . | . . Flight . | . . Fastest Speed 100 | 160 100 Average Speed 109 | 160 108 Slowest Speed 180 | 160 180 Overloaded Moves . | . . Propulsion Burnouts . | . . Robots Hopped . | . . Cave-ins Triggered . | . . Exploration Rate (%) 26 | 3 49 Regions Visited 1 Branch Regions . Pre-discovered Areas . | . . Known Exits Taken . | . . Unknown Exits Taken 1 | 1 . Scrap Searched . | . . Spaces Dug . | . . Terrain Destroyed 66 | . 66 Melee . | . . Projectile 1 | . 1 AOE 65 | . 65 Terrain Rammed . | . . Walls Destroyed . | . . Machines Disabled . | . . Actions | -11 -10 --------- Run | Scr Mat Total 599 | 14 585 Wait 55 | . 55 Move 460 | 7 453 Hop . | . . Pick Up 13 | . 13 Fast Attach 3 | . 3 Attach 4 | 1 3 Detach . | . . Swap 9 | 2 7 Drop 15 | 2 13 Fire 40 | 2 38 Melee . | . . Ram . | . . Kick . | . . Crush . | . . Escape Stasis . | . . Rewire . | . . Trap . | . . Miscellaneous . | . . Route ------- -11/Scrapyard -10/Materials (discovered 2 exits: *Mat / *Min) History --------- Turn | Location | Event 12 | -11/Scrapyard | Discovered new exit (range 3) 24 | -11/Scrapyard | Entered Materials 150 | -10/Materials | Discovered new exit (range 16) 185 | -10/Materials | Identified exit to Materials 317 | -10/Materials | Build established: Mutant 388 | -10/Materials | Discovered new exit (range 7) 396 | -10/Materials | Identified exit to Mines 442 | -10/Materials | Core integrity fell below 50% 542 | -10/Materials | Core integrity fell below 20% 713 | -10/Materials | Destroyed by G-47 Trooper with Particle Gun Last Messages --------------- 00578_ K-01 Serf collects debris. 00579_ Acquired 43 matter. 00579_ U-05 Engineer lays Concrete. 00581_ U-05 Engineer builds a Wall. 00581_ R-06 Scavenger collects Particle Cannon. 00585_ U-05 Engineer lays Concrete. 00600_ >> MONITOR: Recycling Unit M002 accepting Ion Engine(86%). 00603_ >> MONITOR: Recycling Unit M002 accepting Wheel(82%). 00606_ >> MONITOR: Recycling Unit M002 accepting Aluminum Leg(87%). 00609_ >> MONITOR: Recycling Unit M002 accepting Particle Cannon(38%). 00611_ Dropped Com. Wheel. 00621_ Dropped Mining Laser. 00622_ Acquired Shotgun. 00629_ Acquired Particle Cannon. 00639_ R-06 Scavenger collects Com. Wheel. 00680_ Acquired 9 matter. 00681_ Acquired 30 matter. 00703_ K-01 Serf cleans the Machine. 00703_ Acquired Mining Laser. 00709_ K-01 Serf cleans the Machine. Map ----- +----------------------------------------------------+ | ?????????????????????????????????????????????????? | | ?????????????????????????????????????????????????? | | ?????????????????????????????????????????????????? | | ?????????????????????????????????????????????????? | | ?????????????????????????????????????????????????? | | ?????????????????????????????????????????????????? | | ?????????????????????????????????????????????????? | | ?????????????????????????????????????????????????? | | ?????????????????????????????????????????????????? | | ?????????????????????????????????????????????????? | | ?????????????????????????????????????????????????? | | ??????????????????????# ???? ???????????????????? | | ??????????????????????# ??? #??????????????????? | | ??????????????????????# ??? ### ??????????????? | | ??????????????????????# ??? #????????????? | | ??????????????????????# ??? #????????????? | | ??????????????????????# ### ?????????????? | | ????????????????????###k ?????????????? | | ????????????????????? ! ??????????????? | | ????????????????????? u ^ ???????????????? | | ?????????????????????? !== """???????????????? | | ??????????????????????# =ga """???????????????? | | ??????????????????????# === "?????????????????? | | ? ?????????????????# g ???????????????????? | | ? ?? ????????####### ?????????????????????? | | # ?? ?? o @#??????????????????????? | | # ?? ?????????###### ####???????????????????? | | # #?? ?????????????# """#???????????????????? | | # #?? ?????????????# w "#???????????????????? | | # #?? ?????????????# "#???????????????????? | | # #?? ?????????????# k> ""#???????????????????? | | # #?# ###?##???????# "#???????????????????? | | # #?# ## # ###????# "#???????????????????? | | # ### """""""""###?# """#?????????? ???????? | | # # " "#### k####?????????? ???????? | | # " " ## ###########??? ???????? | | # " ##### + #??# #??????? | | # " + * %% # #??# #??????? | | # # " ##### # """"""" #??# #??????? | | ###+###"" =## # """"""" #??# #??????? | | " " # # """"""" #??# #??????? | | """ " " ## # """"""" #??# #??????? | | """ ###+########### # """"""" #??# #??????? | | """ ## + # # #??# #??????? | | ## # #= #+############ #??##### | | """ ## # #% ### !!! ## #?##!!!! | | """ ## # + + ! ## #?#! | | """ ## # # # ! ! ## ###! | | =% ## # # # # ## | | #+#"###### + # # + | +----------------------------------------------------+ Best States ------------- Heat Dissipation 25 Energy Generation 10 Energy Capacity 250 Matter Stores 300 Matter Capacity 300 Sight Range 16 Terrain Scan Density 10 Evasion (%) 40 Recoil Reduction 1 Item Schematics ----------------- None Robot Schematics ------------------ None Fabricated ------------ Nothing Alien Tech Used ----------------- None Achievements -------------- None Challenges ------------ None Game ------ Seed AerolevImprovedBoosters Manual? 0 Play Time 00:20:07 Cumulative 84.3 hours Start 2020.11.16 @ 18:07:40 End 2020.11.17 @ 06:55:29 Sessions 4 Manual Loads 0 Difficulty Rogue Special Mode Halloween2020/ForbiddenLore Game No. 36 Rogue 33 Adventurer 0 Explorer 3 Win Type - Total 1 Types 1/0/0/0/0/0/0/0/0 Lore% 39 Gallery% 53 Achievement% 37 Wizard Run 0 Options --------- ASCII 0 Keyboard 0 Movement Numpad Keybinds 0 Fullscreen 2 Font 16/Dina Map View 76x50 Tactical HUD 1 Map Filters NONE Filters NONE Steam 1 RUN: 5cd66e70-74b2-4c80-ac8a-1c1cf6a846f4